fUST/lending_fUST_20250216
["ID","MTS","AMOUNT","RATE_DAILY","PERIOD"]
[353227956,1739683839887,-1971.0,8.87e-05,2]
[353227957,1739683839897,-623.82782929,8.87e-05,2]
[353227959,1739683839909,-1667.17217071,8.87e-05,2]
[353227961,1739683839918,-396.0,8.87e-05,2]
[353227976,1739683840048,-500.0,8.873e-05,2]
[353227978,1739683840058,-151.9917653,8.873e-05,2]
[353227980,1739683840067,-136.29931508,8.873e-05,2]
[353227983,1739683840086,-363.70068492,8.873e-05,2]
[353227985,1739683840095,-629.83774899,8.877e-05,2]
[353227987,1739683840105,-334.509,8.88e-05,2]
[353227989,1739683840114,-500.0,8.899e-05,2]
[353227991,1739683840124,-216.01615316,8.899e-05,2]
[353227993,1739683840133,-231.15233813,8.899e-05,2]
[353227995,1739683840143,-442.10816069,8.899e-05,2]
[353227997,1739683840152,-26275.84218292,8.9e-05,2]
[353227999,1739683840164,-5753.66260943,8.9e-05,2]
[353228002,1739683840175,-14886.45718198,8.9e-05,2]
[353228004,1739683840187,-517.5299952,8.9e-05,2]
[353228015,1739683840283,-32535.26118913,8.9e-05,2]
[353228019,1739683840304,-714.78080813,8.9e-05,2]
[353228299,1739683843110,-500.0,8.829e-05,2]
[353228301,1739683843119,-23263.1901663,8.9e-05,2]
[353228526,1739683846105,-1037.97,8.829e-05,2]
[353228527,1739683846115,-10208.9257087,8.829e-05,2]
[353228528,1739683846165,-4700.2642913,8.829e-05,2]
[353228529,1739683846175,-37623.04782321,8.9e-05,2]
[353228603,1739685032205,-577.51861809,8.22e-05,2]
[353228606,1739685032219,-2448.02340381,8.22e-05,2]
[353228615,1739685032298,-174.4579781,8.22e-05,2]
[353228617,1739685032308,-300.0,8.825e-05,2]
[353228619,1739685032317,-641.6,8.826e-05,2]
[353228621,1739685032327,-1071.4,8.826e-05,2]
[353228623,1739685032336,-2573.79,8.826e-05,2]
[353228625,1739685032346,-271.57553242,8.826e-05,2]
[353228627,1739685032355,-270.72124637,8.826e-05,2]
[353228629,1739685032364,-503.97714917,8.826e-05,2]
[353228631,1739685032374,-1666.39,8.826e-05,2]
[353228634,1739685032386,-500.0,8.826e-05,2]
[353228636,1739685032395,-935.38,8.826e-05,2]
[353228637,1739685032405,-4797.37347861,8.826e-05,2]
[353228640,1739685032420,-468.88652139,8.826e-05,2]
[353228642,1739685032429,-802.18,8.826e-05,2]
[353228644,1739685032438,-543.44,8.826e-05,2]
[353228646,1739685032447,-1772.47,8.826e-05,2]
[353228648,1739685032457,-500.0,8.826e-05,2]
[353228650,1739685032466,-1844.76,8.826e-05,2]
[353228652,1739685032476,-1264.31,8.826e-05,2]
[353228654,1739685032486,-615.77,8.826e-05,2]
[353228656,1739685032495,-615.24,8.826e-05,2]
[353228658,1739685032505,-500.0,8.826e-05,2]
[353228660,1739685032514,-1838.02,8.826e-05,2]
[353228662,1739685032523,-500.0,8.826e-05,2]
[353228664,1739685032532,-171.2,8.826e-05,2]
[353228665,1739685032541,-374.29422936,8.826e-05,2]
[353228666,1739685032564,-125.70577064,8.826e-05,2]
[353228667,1739685032574,-632.85,8.826e-05,2]
[353228668,1739685032584,-765.53,8.826e-05,2]
[353228669,1739685032593,-760.53,8.827e-05,2]
[353228670,1739685032602,-642.15,8.827e-05,2]
[353228671,1739685032612,-500.0,8.827e-05,2]
[353228672,1739685032623,-637.58,8.827e-05,2]
[353228673,1739685032632,-998.57,8.827e-05,2]
[353228674,1739685032642,-683.88,8.827e-05,2]
[353228675,1739685032651,-693.1,8.827e-05,2]
[353228676,1739685032661,-500.0,8.827e-05,2]
[353228677,1739685032670,-978.2,8.827e-05,2]
[353228678,1739685032679,-500.0,8.827e-05,2]
[353228679,1739685032689,-562.56456364,8.827e-05,2]
[353228696,1739685032843,-500.0,8.827e-05,2]
[353228698,1739685032853,-759.3,8.827e-05,2]
[353228700,1739685032863,-202.21721147,8.827e-05,2]
[353228702,1739685032874,-473.96278853,8.827e-05,2]
[353228704,1739685032884,-500.0,8.827e-05,2]
[353228706,1739685032893,-614.08,8.827e-05,2]
[353228708,1739685032902,-500.0,8.827e-05,2]
[353228710,1739685032911,-1668.39137547,8.827e-05,2]
[353229244,1739685038218,-309.8,8.827e-05,2]
[353229247,1739685038230,-1446.09,8.827e-05,2]
[353229249,1739685038239,-574.49,8.827e-05,2]
[353229251,1739685038249,-500.0,8.827e-05,2]
[353229253,1739685038258,-2233.17,8.827e-05,2]
[353229255,1739685038267,-500.0,8.827e-05,2]
[353229257,1739685038276,-852.63,8.827e-05,2]
[353229259,1739685038285,-500.0,8.827e-05,2]
[353229261,1739685038294,-1222.92,8.827e-05,2]
[353229263,1739685038303,-500.0,8.827e-05,2]
[353229265,1739685038313,-500.0,8.827e-05,2]
[353229267,1739685038321,-896.54,8.827e-05,2]
[353229269,1739685038331,-668.97,8.827e-05,2]
[353229271,1739685038340,-881.54535584,8.827e-05,2]
[353229302,1739685040243,-134.00464416,8.827e-05,2]
[353229303,1739685040253,-373.9210773,8.827e-05,2]
[353229331,1739685043225,-800.88,8.826e-05,2]
[353229332,1739685043252,-691.15,8.826e-05,2]
[353229333,1739685043350,-648.09,8.826e-05,2]
[353229334,1739685043359,-1026.76,8.826e-05,2]
[353229335,1739685043369,-126.0789227,8.827e-05,2]
[353229336,1739685043378,-863.11,8.827e-05,2]
[353229337,1739685043388,-654.99,8.827e-05,2]
[353229338,1739685043398,-500.0,8.827e-05,2]
[353229339,1739685043408,-1194.99,8.827e-05,2]
[353229340,1739685043418,-500.0,8.827e-05,2]
[353229342,1739685043428,-500.0,8.827e-05,2]
[353229343,1739685043439,-831.64,8.827e-05,2]
[353229345,1739685043448,-731.74,8.827e-05,2]
[353229346,1739685043457,-500.0,8.827e-05,2]
[353229347,1739685043467,-974.72,8.827e-05,2]
[353229348,1739685043477,-507.97,8.827e-05,2]
[353229349,1739685043488,-500.0,8.827e-05,2]
[353229350,1739685043503,-11715.20163332,8.827e-05,2]
[353229351,1739685043517,-2043.35836668,8.827e-05,2]
[353229352,1739685043527,-500.0,8.827e-05,2]
[353229353,1739685043536,-1051.5,8.827e-05,2]
[353229354,1739685043546,-701.65,8.827e-05,2]
[353229355,1739685043555,-1605.97081948,8.827e-05,2]
[353229356,1739685043568,-791.88918052,8.827e-05,2]
[353229357,1739685043578,-80.34417932,8.827e-05,2]
[353229366,1739685046256,-568.36784542,8.827e-05,2]
[353229367,1739685046265,-500.0,8.827e-05,2]
[353229368,1739685046274,-1006.22,8.827e-05,2]
[353229369,1739685046283,-500.0,8.827e-05,2]
[353229370,1739685046292,-770.02,8.827e-05,2]
[353229371,1739685046302,-500.0,8.827e-05,2]
[353229372,1739685046312,-15430.168543,8.827e-05,2]
[353229373,1739685193699,778.0,0.00019,120]
[353229374,1739685541751,212.42810988,0.00019,120]
[353229376,1739685941661,500.0,0.00019,120]
[353229377,1739686042409,500.0,0.00018904,120]
[353229378,1739686042641,504.06749531,0.00018904,120]
[353229427,1739686232582,-2342.3,8.22e-05,2]
[353229429,1739686232594,-657.7,8.22e-05,2]
[353229431,1739686232604,-183.3298713,8.811e-05,2]
[353229433,1739686232613,-42.42615814,8.823e-05,2]
[353229450,1739686232797,-257.57384186,8.823e-05,2]
[353229451,1739686232807,-63.48745858,8.824e-05,2]
[353229926,1739686238460,-531.96040214,8.824e-05,2]
[353229927,1739686238511,-388.53213928,8.824e-05,2]
[353229928,1739686238521,-2487.38,8.824e-05,2]
[353229929,1739686238530,-855.19755032,8.824e-05,2]
[353229969,1739686240547,-637.96469095,8.824e-05,2]
[353229971,1739686240576,-145.45775873,8.824e-05,2]
[353229972,1739686240586,-1046.44985359,8.824e-05,2]
[353229973,1739686240751,-400.0,8.824e-05,2]
[353230001,1739686243506,-3700.46014641,8.824e-05,2]
[353230002,1739686243516,-896.4,8.824e-05,2]
[353230003,1739686243527,-367.60288596,8.824e-05,2]
[353230058,1739686246454,-401.15711404,8.824e-05,2]
[353230059,1739686246464,-1719.45,8.824e-05,2]
[353230060,1739686246474,-1788.72,8.824e-05,2]
[353230061,1739686246484,-500.0,8.824e-05,2]
[353230062,1739686246494,-1229.07,8.824e-05,2]
[353230063,1739686246504,-589.61,8.824e-05,2]
[353230064,1739686246513,-590.11,8.824e-05,2]
[353230065,1739686246525,-500.0,8.824e-05,2]
[353230066,1739686246535,-1804.69,8.824e-05,2]
[353230067,1739686246545,-500.0,8.824e-05,2]
[353230068,1739686246555,-2582.11,8.824e-05,2]
[353230069,1739686246565,-606.48,8.824e-05,2]
[353230070,1739686246575,-942.98,8.824e-05,2]
[353230071,1739686246584,-733.63,8.824e-05,2]
[353230072,1739686246594,-728.84,8.825e-05,2]
[353230073,1739686246604,-615.39,8.825e-05,2]
[353230074,1739686246613,-611.01,8.825e-05,2]
[353230075,1739686246624,-500.0,8.825e-05,2]
[353230076,1739686246635,-332.68675502,8.825e-05,2]
[353230077,1739686246647,-624.28324498,8.825e-05,2]
[353230078,1739686246657,-655.39,8.825e-05,2]
[353230079,1739686246667,-500.0,8.825e-05,2]
[353230080,1739686246676,-500.0,8.825e-05,2]
[353230081,1739686246686,-626.66993865,8.825e-05,2]
[353230082,1739686246695,-500.0,8.825e-05,2]
[353230083,1739686246705,-500.0,8.825e-05,2]
[353230084,1739686246716,-293.60717066,8.825e-05,2]
[353230085,1739686246726,-500.0,8.825e-05,2]
[353230086,1739686246735,-500.0,8.825e-05,2]
[353230087,1739686246745,-664.22,8.825e-05,2]
[353230088,1739686246755,-500.0,8.825e-05,2]
[353230089,1739686246764,-937.44,8.825e-05,2]
[353230090,1739686246774,-520.8,8.825e-05,2]
[353230091,1739686246784,-500.0,8.825e-05,2]
[353230092,1739686246794,-500.0,8.825e-05,2]
[353230093,1739686246805,-727.67,8.825e-05,2]
[353230094,1739686246815,-500.0,8.825e-05,2]
[353230095,1739686246825,-648.01,8.825e-05,2]
[353230096,1739686246835,-224.00898383,8.825e-05,2]
[353230097,1739686246845,-588.49,8.825e-05,2]
[353230098,1739686246855,-181.16552568,8.825e-05,2]
[353230169,1739687432902,-2558.97068834,8.22e-05,2]
[353230184,1739687438453,-241.02931166,8.22e-05,2]
[353230185,1739687438602,-300.0,8.799e-05,2]
[353230186,1739687438643,-22015.46896826,8.8e-05,2]
[353230187,1739687438653,-194.7978129,8.811e-05,2]
[353230188,1739687438664,-1751.98,8.821e-05,2]
[353230189,1739687438674,-500.0,8.821e-05,2]
[353230190,1739687438684,-724.68,8.822e-05,2]
[353230191,1739687438695,-589.75,8.822e-05,2]
[353230192,1739687438704,-585.55,8.822e-05,2]
[353230193,1739687438714,-500.0,8.822e-05,2]
[353230194,1739687438724,-649.6,8.822e-05,2]
[353230195,1739687438734,-628.08,8.822e-05,2]
[353230196,1739687438743,-500.0,8.822e-05,2]
[353230197,1739687438752,-636.55,8.822e-05,2]
[353230198,1739687438761,-898.38,8.822e-05,2]
[353230199,1739687438771,-500.0,8.822e-05,2]
[353230200,1739687438780,-697.35,8.822e-05,2]
[353230201,1739687438791,-621.01,8.822e-05,2]
[353230202,1739687438801,-563.97,8.822e-05,2]
[353230203,1739687438810,-765.56,8.822e-05,2]
[353230204,1739687438819,-966.19,8.822e-05,2]
[353230205,1739687438828,-500.0,8.822e-05,2]
[353230206,1739687438838,-2175.95,8.822e-05,2]
[353230207,1739687438848,-405.69794003,8.822e-05,2]
[353230208,1739687438857,-500.0,8.822e-05,2]
[353230209,1739687438867,-1242.54,8.822e-05,2]
[353230210,1739687438876,-817.11,8.822e-05,2]
[353230211,1739687438887,-550.56,8.822e-05,2]
[353230212,1739687438896,-921.69,8.822e-05,2]
[353230213,1739687438906,-2498.85,8.822e-05,2]
[353230214,1739687438915,-500.0,8.822e-05,2]
[353230215,1739687438925,-641.09,8.822e-05,2]
[353230216,1739687438935,-504.50980272,8.822e-05,2]
[353230227,1739687441524,-370.73019728,8.822e-05,2]
[353230228,1739687441534,-213.15592878,8.822e-05,2]
[353230269,1739687446540,-286.84407122,8.822e-05,2]
[353230270,1739687446550,-1228.54,8.822e-05,2]
[353230271,1739687446560,-500.0,8.822e-05,2]
[353230272,1739687446569,-500.0,8.822e-05,2]
[353230273,1739687446579,-615.22,8.822e-05,2]
[353230274,1739687446588,-701.25,8.822e-05,2]
[353230275,1739687446597,-796.99,8.822e-05,2]
[353230276,1739687446607,-1017.44,8.822e-05,2]
[353230277,1739687446616,-5320.51,8.822e-05,2]
[353230278,1739687446625,-1674.51,8.822e-05,2]
[353230279,1739687446635,-500.0,8.822e-05,2]
[353230280,1739687446644,-500.0,8.822e-05,2]
[353230281,1739687446653,-500.0,8.822e-05,2]
[353230282,1739687446663,-921.55,8.822e-05,2]
[353230283,1739687446672,-1797.53,8.822e-05,2]
[353230284,1739687446680,-373.70796226,8.822e-05,2]
[353230287,1739688199904,317.2,8.8e-05,30]
[353230322,1739688631878,-2500.0,8.22e-05,2]
[353230323,1739688631890,-159.372321,8.688e-05,2]
[353230325,1739688631901,-1889.68,8.797e-05,2]
[353230326,1739688631913,-300.0,8.797e-05,2]
[353230328,1739688631925,-500.0,8.797e-05,2]
[353230330,1739688631937,-694.49,8.798e-05,2]
[353230331,1739688631949,-343.77098587,8.798e-05,2]
[353230345,1739688637713,-217.38901413,8.798e-05,2]
[353230346,1739688637723,-565.18,8.798e-05,2]
[353230347,1739688637733,-500.0,8.798e-05,2]
[353230348,1739688637743,-890.03,8.798e-05,2]
[353230349,1739688637752,-601.91,8.798e-05,2]
[353230350,1739688637762,-315.81098587,8.798e-05,2]
[353230509,1739689832120,-2300.0,8.22e-05,2]
[353230511,1739689832130,-302.485,8.621e-05,2]
[353230513,1739689832140,-500.0,8.773e-05,2]
[353230515,1739689832149,-500.0,8.773e-05,2]
[353230517,1739689832159,-159.0,8.773e-05,2]
[353230519,1739689832168,-500.0,8.773e-05,2]
[353230521,1739689832177,-295.01971534,8.773e-05,2]
[353230523,1739689832186,-300.0,8.794e-05,2]
[353230525,1739689832195,-500.0,8.795e-05,2]
[353230527,1739689832204,-1025.0,8.795e-05,2]
[353230529,1739689832213,-500.0,8.795e-05,2]
[353230531,1739689832224,-2553.9,8.795e-05,2]
[353230532,1739689832233,-1414.24256318,8.795e-05,2]
[353230535,1739689832248,-295.17743682,8.795e-05,2]
[353230537,1739689832257,-2523.10703283,8.795e-05,2]
[353230545,1739689832334,-505.29837822,8.795e-05,2]
[353230620,1739689837882,-978.75395275,8.795e-05,2]
[353230621,1739689837894,-1569.5106362,8.795e-05,2]
[353230622,1739689837904,-920.0046678,8.795e-05,2]
[353230623,1739689837914,-44.6653322,8.795e-05,2]
[353230624,1739689837924,-728.909021,8.795e-05,2]
[353230625,1739689837935,-413.300005,8.795e-05,2]
[353230626,1739689837947,-575.6874976,8.795e-05,2]
[353230627,1739689837958,-195.5534764,8.795e-05,2]
[353230628,1739689837968,-887.82,8.795e-05,2]
[353230629,1739689837979,-1845.57,8.795e-05,2]
[353230630,1739689837988,-500.0,8.795e-05,2]
[353230631,1739689837998,-423.52936633,8.795e-05,2]
[353230632,1739689838007,-574.45,8.795e-05,2]
[353230633,1739689838017,-1323.8,8.795e-05,2]
[353230634,1739689838026,-500.0,8.795e-05,2]
[353230635,1739689838036,-643.56,8.795e-05,2]
[353230636,1739689838046,-500.0,8.795e-05,2]
[353230637,1739689838056,-1904.96,8.795e-05,2]
[353230638,1739689838066,-2652.76,8.795e-05,2]
[353230639,1739689838075,-727.05,8.795e-05,2]
[353230640,1739689838085,-500.0,8.795e-05,2]
[353230641,1739689838095,-500.0,8.795e-05,2]
[353230642,1739689838105,-289.93608424,8.795e-05,2]
[353230643,1739689838115,-236.29665985,8.795e-05,2]
[353230644,1739689838125,-500.0,8.796e-05,2]
[353230645,1739689838135,-310.6870197,8.796e-05,2]
[353230646,1739689838145,-707.22,8.796e-05,2]
[353230647,1739689838156,-505.77102155,8.796e-05,2]
[353230648,1739689838166,-500.0,8.796e-05,2]
[353230649,1739689838176,-541.63,8.796e-05,2]
[353230650,1739689838186,-537.77,8.796e-05,2]
[353230651,1739689838195,-647.5328818,8.796e-05,2]
[353230652,1739689838204,-470.57468763,8.796e-05,2]
[353230653,1739689838217,-428.19531237,8.796e-05,2]
[353230654,1739689838227,-600.79,8.796e-05,2]
[353230655,1739689838237,-630.86,8.796e-05,2]
[353230656,1739689838247,-500.0,8.796e-05,2]
[353230657,1739689838257,-500.0,8.796e-05,2]
[353230658,1739689838267,-500.0,8.796e-05,2]
[353230659,1739689838276,-500.0,8.796e-05,2]
[353230660,1739689838286,-500.0,8.796e-05,2]
[353230661,1739689838295,-881.78,8.796e-05,2]
[353230662,1739689838305,-500.0,8.796e-05,2]
[353230663,1739689838315,-500.0,8.796e-05,2]
[353230664,1739689838325,-689.12,8.796e-05,2]
[353230665,1739689838334,-615.97,8.796e-05,2]
[353230666,1739689838344,-500.0,8.796e-05,2]
[353230667,1739689838353,-500.0,8.796e-05,2]
[353230668,1739689838362,-547.17,8.796e-05,2]
[353230669,1739689838372,-500.0,8.796e-05,2]
[353230670,1739689838382,-15896.65,8.796e-05,2]
[353230671,1739689838391,-567.33944001,8.796e-05,2]
[353230672,1739689838401,-31441.71,8.796e-05,2]
[353230673,1739689838411,-500.0,8.796e-05,2]
[353230674,1739689838420,-500.0,8.796e-05,2]
[353230675,1739689838429,-548.45,8.796e-05,2]
[353230676,1739689838439,-817.0,8.796e-05,2]
[353230677,1739689838449,-845.7,8.796e-05,2]
[353230678,1739689838463,-1891.06,8.796e-05,2]
[353230679,1739689838473,-178.15,8.796e-05,2]
[353230680,1739689838483,-1866.28,8.796e-05,2]
[353230681,1739689838493,-2174.92,8.796e-05,2]
[353230682,1739689838503,-500.0,8.796e-05,2]
[353230683,1739689838513,-1031.07,8.796e-05,2]
[353230684,1739689838522,-614.38,8.796e-05,2]
[353230685,1739689838534,-1079.1,8.796e-05,2]
[353230686,1739689838544,-500.0,8.796e-05,2]
[353230687,1739689838553,-627.7,8.796e-05,2]
[353230688,1739689838563,-152.83652655,8.796e-05,2]
[353230689,1739689838573,-987.45,8.796e-05,2]
[353230690,1739689838583,-192.33729865,8.796e-05,2]
[353230691,1739689838592,-500.0,8.796e-05,2]
[353230692,1739689838602,-500.0,8.796e-05,2]
[353230693,1739689838611,-500.0,8.796e-05,2]
[353230694,1739689838621,-500.0,8.796e-05,2]
[353230695,1739689838631,-901.27,8.796e-05,2]
[353230696,1739689838641,-500.0,8.796e-05,2]
[353230697,1739689838651,-528.29,8.796e-05,2]
[353230698,1739689838661,-1281.51,8.796e-05,2]
[353230699,1739689838671,-763.78,8.796e-05,2]
[353230700,1739689838681,-256.02895938,8.796e-05,2]
[353230701,1739689838691,-648.17,8.796e-05,2]
[353230702,1739689838700,-692.86,8.796e-05,2]
[353230703,1739689838710,-500.0,8.796e-05,2]
[353230704,1739689838719,-876.18,8.796e-05,2]
[353230705,1739689838729,-858.66,8.796e-05,2]
[353230706,1739689838739,-500.0,8.796e-05,2]
[353230707,1739689838748,-672.92,8.796e-05,2]
[353230708,1739689838759,-1079.21,8.796e-05,2]
[353230709,1739689838769,-500.0,8.796e-05,2]
[353230710,1739689838779,-500.0,8.796e-05,2]
[353230711,1739689838788,-13932.23,8.796e-05,2]
[353230712,1739689838798,-547.14,8.796e-05,2]
[353230713,1739689838808,-672.42,8.796e-05,2]
[353230714,1739689838817,-1007.68,8.796e-05,2]
[353230715,1739689838827,-554.14,8.796e-05,2]
[353230716,1739689838837,-964.29,8.796e-05,2]
[353230717,1739689838847,-2538.5,8.796e-05,2]
[353230718,1739689838856,-500.0,8.796e-05,2]
[353230719,1739689838865,-500.0,8.796e-05,2]
[353230720,1739689838874,-548.64689552,8.796e-05,2]
[353230721,1739689838884,-500.0,8.796e-05,2]
[353230722,1739689838895,-500.0,8.796e-05,2]
[353230723,1739689838905,-189.50703136,8.796e-05,2]
[353230724,1739689838914,-500.0,8.796e-05,2]
[353230725,1739689838924,-788.09,8.796e-05,2]
[353230726,1739689838933,-500.92102813,8.796e-05,2]
[353230727,1739689838943,-152.83652655,8.796e-05,2]
[353230728,1739689838952,-152.83652655,8.797e-05,2]
[353230729,1739689838962,-3945.34856541,8.797e-05,2]
[353230730,1739689838975,-931.66,8.797e-05,2]
[353230731,1739689838986,-790.67211438,8.797e-05,2]
[353230732,1739689838998,-11908.23782019,8.797e-05,2]
[353230733,1739689839011,-462.83688589,8.797e-05,2]
[353230734,1739689839023,-9460.63835381,8.797e-05,2]
[353230735,1739689840129,-587.09,8.796e-05,2]
[353230736,1739689840139,-45057.69088592,8.797e-05,2]
[353230737,1739689840151,-871029.23403058,8.797e-05,2]
[353230738,1739689840182,-7243.72313487,8.797e-05,2]
[353230739,1739689840194,-1193.18935938,8.797e-05,2]
[353230797,1739690971141,-160.0,7.752e-05,3]
[353230798,1739690971163,-160.0,7.837e-05,4]
[353230799,1739690971185,-141.52842437,7.921e-05,5]
[353230837,1739691032257,-18.47157563,7.921e-05,5]
[353230839,1739691032267,-160.0,8.006e-05,6]
[353230841,1739691032276,-160.0,8.09e-05,7]
[353230842,1739691032286,-160.0,8.175e-05,8]
[353230843,1739691032295,-300.0,8.179e-05,2]
[353230844,1739691032305,-153.0,8.18e-05,2]
[353230845,1739691032314,-309.3691144,8.18e-05,2]
[353230846,1739691032323,-354.876058,8.18e-05,2]
[353230847,1739691032333,-283.1310477,8.18e-05,2]
[353230848,1739691032343,-153.0,8.18e-05,2]
[353230849,1739691032354,-153.0,8.18e-05,2]
[353230850,1739691032364,-153.0,8.18e-05,2]
[353230851,1739691032373,-43.61393239,8.18e-05,2]
[353230852,1739691032417,-111.08526781,8.18e-05,2]
[353230853,1739691032426,-215.9670454,8.18e-05,2]
[353230854,1739691032435,-355.0331824,8.18e-05,2]
[353230855,1739691032444,-306.6310032,8.18e-05,2]
[353230856,1739691032454,-153.0,8.18e-05,2]
[353230859,1739691032470,-153.0,8.18e-05,2]
[353230861,1739691032483,-154.6992002,8.18e-05,2]
[353230862,1739691032493,-215.9670454,8.18e-05,2]
[353230863,1739691032504,-153.0,8.18e-05,2]
[353230864,1739691032513,-354.7326672,8.18e-05,2]
[353230865,1739691032523,-153.0,8.18e-05,2]
[353230866,1739691032533,-153.0,8.18e-05,2]
[353230867,1739691032543,-215.9670454,8.18e-05,2]
[353230868,1739691032553,-154.460122,8.18e-05,2]
[353230869,1739691032562,-153.0,8.18e-05,2]
[353230870,1739691032571,-1997.45742099,8.22e-05,2]
[353230907,1739691038103,-202.54257901,8.22e-05,2]
[353230909,1739691038113,-154.6992002,8.22e-05,2]
[353230910,1739691038122,-302.8932491,8.22e-05,2]
[353230913,1739691038132,-215.9670454,8.22e-05,2]
[353230915,1739691038141,-160.0,8.259e-05,9]
[353230917,1739691038150,-13.8979263,8.322e-05,2]
[353230919,1739691038169,-139.5639356,8.322e-05,2]
[353230922,1739691038178,-160.0,8.343e-05,10]
[353230923,1739691038188,-160.0,8.428e-05,11]
[353230925,1739691038198,-160.0,8.512e-05,12]
[353230926,1739691038207,-160.0,8.597e-05,13]
[353230927,1739691038217,-241.988,8.621e-05,2]
[353230928,1739691038227,-160.0,8.681e-05,14]
[353230929,1739691038237,-160.0,8.766e-05,15]
[353230930,1739691038247,-500.0,8.773e-05,2]
[353230931,1739691038257,-500.0,8.773e-05,2]
[353230932,1739691038267,-500.0,8.773e-05,2]
[353230933,1739691038276,-500.0,8.792e-05,2]
[353230934,1739691038286,-500.0,8.793e-05,2]
[353230935,1739691038296,-1003.12,8.793e-05,2]
[353230936,1739691038306,-500.0,8.793e-05,2]
[353230937,1739691038315,-2534.71,8.793e-05,2]
[353230939,1739691038325,-500.0,8.793e-05,2]
[353230940,1739691038335,-500.0,8.793e-05,2]
[353230942,1739691038345,-500.0,8.793e-05,2]
[353230943,1739691038354,-500.0,8.793e-05,2]
[353230944,1739691038363,-500.0,8.793e-05,2]
[353230945,1739691038374,-500.0,8.793e-05,2]
[353230946,1739691038384,-500.0,8.793e-05,2]
[353230947,1739691038394,-1694.54,8.793e-05,2]
[353230948,1739691038403,-966.15,8.793e-05,2]
[353230949,1739691038412,-5467.08,8.793e-05,2]
[353230950,1739691038421,-1892.81,8.793e-05,2]
[353230951,1739691038430,-883.68,8.793e-05,2]
[353230952,1739691038439,-500.0,8.793e-05,2]
[353230953,1739691038449,-1802.98,8.793e-05,2]
[353230954,1739691038459,-1289.47,8.793e-05,2]
[353230955,1739691038468,-571.35,8.793e-05,2]
[353230956,1739691038477,-616.75,8.793e-05,2]
[353230957,1739691038487,-1825.58,8.793e-05,2]
[353230958,1739691038497,-500.0,8.793e-05,2]
[353230959,1739691038507,-2542.23,8.793e-05,2]
[353230960,1739691038516,-738.42,8.793e-05,2]
[353230961,1739691038525,-500.0,8.793e-05,2]
[353230962,1739691038534,-508.29520958,8.794e-05,2]
[353230963,1739691038544,-500.0,8.794e-05,2]
[353230964,1739691038554,-500.0,8.794e-05,2]
[353230965,1739691038564,-500.0,8.794e-05,2]
[353230966,1739691038574,-500.0,8.794e-05,2]
[353230967,1739691038584,-500.0,8.794e-05,2]
[353230968,1739691038593,-500.0,8.794e-05,2]
[353230969,1739691038603,-500.0,8.794e-05,2]
[353230970,1739691038613,-174.81152194,8.794e-05,2]
[353230971,1739691038622,-500.0,8.794e-05,2]
[353230972,1739691038631,-500.0,8.794e-05,2]
[353230973,1739691038641,-500.0,8.794e-05,2]
[353230974,1739691038651,-500.0,8.794e-05,2]
[353230975,1739691038661,-500.0,8.794e-05,2]
[353230976,1739691038671,-500.0,8.794e-05,2]
[353230977,1739691038680,-500.0,8.794e-05,2]
[353230978,1739691038691,-500.0,8.794e-05,2]
[353230979,1739691038700,-500.0,8.794e-05,2]
[353230980,1739691038709,-500.0,8.794e-05,2]
[353230981,1739691038719,-500.0,8.794e-05,2]
[353230982,1739691038729,-500.0,8.794e-05,2]
[353230983,1739691038738,-500.0,8.794e-05,2]
[353230984,1739691038748,-464.38997811,8.794e-05,2]
[353230985,1739691038757,-500.0,8.794e-05,2]
[353230986,1739691038767,-500.0,8.794e-05,2]
[353230987,1739691038777,-503.11827468,8.794e-05,2]
[353230988,1739691038787,-291.43961845,8.794e-05,2]
[353230989,1739691038796,-500.0,8.794e-05,2]
[353230990,1739691038807,-500.0,8.794e-05,2]
[353230991,1739691038816,-500.0,8.794e-05,2]
[353230992,1739691038826,-500.0,8.794e-05,2]
[353230993,1739691038836,-509.82507298,8.794e-05,2]
[353230994,1739691038846,-502.11629746,8.794e-05,2]
[353230995,1739691038856,-251.03731593,8.794e-05,2]
[353230996,1739691038866,-465.27544063,8.794e-05,2]